[Event "Slovakia Open 2022"]
[Site "Bratislava"]
[Date "2022.10.01"]
[Round "7.24"]
[White "Tomcikova, Zuzana"]
[Black "Rakhmangulova, Anastasiya"]
[Result "0-1"]
[ECO "B23"]
[WhiteElo "1796"]
[BlackElo "2244"]
[Annotator "TA"]
[PlyCount "78"]
[EventDate "2022.09.30"]
[EventCountry "SVK"]
[SourceTitle "playchess.com"]
[Source "ChessBase"]
[SourceQuality "1"]
[TimeControl "2700+10"]

{[%evp 9,78,0,0,-17,-14,-10,-14,-6,-10,-12,-5,-26,-26,-37,-26,-30,-2,-49,-9,-4,1,15,49,40,51,37,46,-19,-19,-27,-15,-57,-31,-31,-11,-11,-13,-15,-25,-35,-37,-69,-70,-170,-124,-126,-110,-189,-196,-281,-268,-263,-256,-471,-435,-863,-241,-834,-833,-1310,-667,-29974,-29976,-29975,-29977,-29977,-29978,-29975,-29979,-29978,-29977]} 1. e4 {[%emt 0:00:05]} c5 {[%emt 0:00:01]} 2. Nc3 {[%emt 0:00:05]} a6 {[%emt 0:00:14]} 3. g3 {[%emt 0:00:15]} b5 {[%emt 0:00:05][%cal Bb7b5,Bb5b4][%mdl 32]} 4. Bg2 {[%emt 0:00:20]} Bb7 {[%emt 0:00:01]} 5. a4 {[%emt 0:01:00]} b4 {[%emt 0:00:07]} 6. Nce2 {[%emt 0:00:02] B23: Closed Sicilian: Lines without g3.} Nf6 {[%emt 0:00:26]} 7. d3 {[%emt 0:00:21]} e6 {[%emt 0:00:03]} 8. Nf3 {[%emt 0:00:23] The position is equal.} d6 {[%emt 0:01:40]} 9. O-O {[%emt 0:00:31]} Nbd7 {[%emt 0:00:12] [#]} 10. Nh4 $146 {[%emt 0:03:03]} ({Predecessor:} 10. b3 g6 11. Bb2 Bg7 12. Nd2 Qc7 13. Nc4 O-O 14. Nxd6 Qxd6 15. e5 Qc7 16. exf6 Bxf6 17. Bxf6 Nxf6 {1-0 (43) Silseth,S (2264)-Blomqvist,E (2507) Lund 2019}) 10... Be7 {[%emt 0:01:11]} 11. f4 {[%emt 0:01:05]} Qc7 {[%emt 0:00:09]} 12. b3 {[%emt 0:02:08]} a5 {[%emt 0:02:14]} 13. Bb2 {[%emt 0:04:30]} (13. c4 $11 {feels stronger.}) 13... Ng4 {[%emt 0:01:05] Hoping for ...Ne3.} 14. Qd2 {[%emt 0:00:22] Against Ne3} (14. Bxg7 $2 Rg8 15. Bb2 Bxh4 $19) 14... Bxh4 {[%emt 0:00:13]} 15. gxh4 {[%emt 0:00:03]} Ngf6 {[%emt 0:02:10]} 16. Ng3 {[%emt 0:02:10][%cal Oe4e5]} O-O {[%emt 0:01:11]} 17. Qe2 {[%emt 0:02:26]} Rae8 {[%emt 0:02:06]} 18. f5 {[%emt 0:03:06]} ({White should play} 18. Rae1 $14) 18... e5 $11 {[%emt 0:01:10]} 19. Bc1 {[%emt 0:00:10]} d5 {[%emt 0:00:53]} 20. h5 {[%emt 0:00:53]} h6 {[%emt 0:00:10][%cal Oc5c4]} (20... Kh8 $5 {[%cal Rc5c4]}) 21. exd5 $1 {[%emt 0:08:45][%cal Od5d6]} Bxd5 {[%emt 0:02:33]} 22. Bxd5 {[%emt 0:00:28]} Nxd5 {[%emt 0:00:01]} 23. Ne4 {[%emt 0:00:33][%cal Of5f6]} N7f6 {[%emt 0:01:27]} 24. Nxf6+ {[%emt 0:02:51]} Nxf6 {[%emt 0:00:03]} 25. Qg2 {[%emt 0:00:18] [#] Black must now prevent Bxh6.} Kh7 {[%emt 0:00:32]} ({Don't do} 25... Nxh5 26. Bxh6 Kh7 27. Bg5 $14 (27. Bxg7 Rg8 $11)) 26. Qh3 {[%emt 0:04:17]} (26. Bb2 $15) 26... Qd6 {[%emt 0:01:31]} (26... e4 $19 {And now ...exd3 would win.} 27. Bb2 exd3 28. Qxd3 (28. Bxf6 $2 gxf6 29. Qxd3 Rd8 $19) 28... c4 29. Qxc4 Qxc4 30. bxc4 Re4) 27. Bb2 $17 {[%emt 0:01:23]} e4 {[%emt 0:00:55] Black is more active.} 28. dxe4 {[%emt 0:03:07]} (28. Rae1 $17 {was necessary.}) 28... Rxe4 $19 {[%emt 0:00:03]} 29. Rf2 {[%emt 0:01:20]} (29. Rad1 $142 Qb6 30. Bxf6 Qxf6 31. Qg3) 29... Rfe8 {[%emt 0:00:58] [#] ...Ng4 is the strong threat.} 30. Raf1 {[%emt 0:01:39]} Re3 {[%emt 0:03:14]} 31. Rf3 {[%emt 0:00:49]} (31. Qg2) 31... Re2 {[%emt 0:00:05]} 32. R3f2 {[%emt 0:00:23]} (32. Bxf6 $142 gxf6 33. Rg3 Qd4+ 34. Kh1) 32... R8e4 $2 {[%emt 0:02:12]} (32... Rxf2 33. Rxf2 Qd1+ 34. Rf1 Qxc2) 33. Rxe2 $2 {[%emt 0:00:54]} (33. Bxf6 Rxf2 34. Rxf2 Qxf6 35. Kf1) 33... Rxe2 {[%emt 0:00:02]} 34. Bxf6 {[%emt 0:00:05]} Qxf6 {[%emt 0:00:03] KQR-KQR} 35. Rf2 {[%emt 0:00:22]} Qd4 $1 {[%emt 0:00:35][%csl LRc2,LRf2] Black mates.} 36. Qf3 {[%emt 0:00:36]} Rxc2 {[%emt 0:00:17]} 37. Kg2 {[%emt 0:00:13]} Rxf2+ {[%emt 0:00:02]} 38. Qxf2 {[%emt 0:00:02]} Qxf2+ {[%emt 0:00:03]} 39. Kxf2 {[%emt 0:00:01]} c4 {[%emt 0:00:06] Weighted Error Value: White=0.91/Black=0.46} 0-1

[Event "Slovakia Open 2022"]
[Site "Bratislava"]
[Date "2022.10.01"]
[Round "7.25"]
[White "Kijac, Miroslav"]
[Black "Melih, Mario"]
[Result "1-0"]
[ECO "D61"]
[WhiteElo "2078"]
[BlackElo "1633"]
[Annotator "TA"]
[PlyCount "51"]
[EventDate "2022.09.30"]
[EventCountry "SVK"]
[SourceTitle "playchess.com"]
[Source "ChessBase"]
[SourceQuality "1"]
[TimeControl "2700+10"]

{[%evp 18,51,28,12,54,37,66,62,85,54,90,40,124,11,54,29,127,110,116,125,110,48,196,193,196,207,200,191,196,196,308,318,357,380,582,578]} 1. d4 {[%emt 0:00:04]} d5 {[%emt 0:00:02]} 2. c4 {[%emt 0:00:11]} e6 {[%emt 0:00:02]} 3. Nc3 {[%emt 0:00:00]} Nf6 {[%emt 0:00:02]} 4. Bg5 {[%emt 0:00:00]} Be7 {[%emt 0:00:02]} 5. e3 {[%emt 0:00:05]} Nbd7 {[%emt 0:00:10]} 6. Nf3 {[%emt 0:00:00]} c6 {[%emt 0:00:02]} 7. Qc2 {[%emt 0:00:07]} O-O {[%emt 0:00:05]} 8. a3 {[%emt 0:00:01]} Re8 {[%emt 0:00:12]} 9. Rd1 {[%emt 0:00:13]} h6 {[%emt 0:00:06]} 10. Bh4 {[%emt 0:00:01]} Nf8 {[%emt 0:00:08] D61: Queen's Gambit Declined: Classical: 7 Qc2.} 11. Bd3 {[%emt 0:00:04]} dxc4 {[%emt 0:00:03]} 12. Bxc4 {[%emt 0:00:01]} b5 {[%emt 0:00:09] White is slightly better.} 13. Ba2 {[%emt 0:00:17]} Bb7 {[%emt 0:00:03]} 14. O-O {[%emt 0:00:11]} (14. Bxf6 $16 gxf6 15. O-O) 14... a6 {[%emt 0:00:12] [#]} (14... N6d7 $14 15. Bg3 Qb6) 15. e4 $146 {[%emt 0:01:59] White has more active pieces.} (15. Bxf6 $16 gxf6 16. Ne4) ({Predecessor:} 15. Bxf6 Bxf6 16. Ne4 Be7 17. Ne5 Qc7 18. f4 Bd6 19. Nxd6 Qxd6 20. f5 f6 21. fxe6 fxe5 {1-0 (32) Savchenko,S (2580)-Sermier,G (2295) Biel 1996}) 15... Rc8 {[%emt 0:00:13]} (15... Nh5 $5 {[%cal Re7h4]} 16. Bxe7 Qxe7 $14) 16. e5 {[%emt 0:02:17]} (16. Bxf6 $5 Bxf6 17. e5 $14) 16... Nd5 {[%emt 0:00:53]} (16... N6d7 $1 $11 {remains equal.} 17. Bg3 Qb6) 17. Bxe7 $16 {[%emt 0:00:04]} Qxe7 {[%emt 0:00:03]} 18. Ne4 {[%emt 0:00:12]} Red8 {[%emt 0:01:21]} 19. Nfd2 {[%emt 0:01:08]} (19. Rfe1 $16) 19... f5 {[%emt 0:07:36] This move loses the game for Black.} ({Black should play} 19... Nf4 $14) 20. Nd6 $18 {[%emt 0:02:18]} Rxd6 {[%emt 0:00:16]} 21. exd6 {[%emt 0:00:10]} Qxd6 {[%emt 0:00:03]} 22. Nf3 {[%emt 0:00:33]} Nd7 {[%emt 0:01:10]} 23. Rfe1 {[%emt 0:00:27]} c5 {[%emt 0:03:20]} (23... N7f6 {is a better defense.} 24. Qc5 Qd7 25. Bxd5 (25. Ne5 Qc7 $18) 25... Nxd5) 24. dxc5 {[%emt 0:00:24]} Nxc5 {[%emt 0:00:03]} 25. Bxd5 {[%emt 0:01:20]} Bxd5 {[%emt 0:00:11]} (25... exd5 $142 26. Qxf5 Rf8) 26. b4 {[%emt 0:00:39] Weighted Error Value: White=0.23 (precise) /Black=0.64} 1-0

[Event "Slovakia Open 2022"]
[Site "Bratislava"]
[Date "2022.10.01"]
[Round "7.26"]
[White "Djubek, Boris"]
[Black "Balint, Peter"]
[Result "0-1"]
[ECO "D73"]
[WhiteElo "1995"]
[BlackElo "2235"]
[Annotator "TA"]
[PlyCount "76"]
[EventDate "2022.09.30"]
[EventCountry "SVK"]
[SourceTitle "playchess.com"]
[Source "ChessBase"]
[SourceQuality "1"]
[TimeControl "2700+10"]

{[%evp 12,76,13,0,23,0,1,7,7,0,0,0,0,1,37,37,35,32,53,56,89,67,85,60,90,79,78,74,103,88,88,-36,-28,-125,-125,-124,-121,-152,-109,-109,-109,-113,-117,-127,-125,-157,-156,-181,-168,-181,-148,-153,-171,-208,-190,-214,-211,-282,-270,-366,-340,-491,-489,-535,-526,-592,-585]} 1. d4 {[%emt 0:00:08]} Nf6 {[%emt 0:00:10]} 2. c4 {[%emt 0:00:07]} g6 {[%emt 0:00:00]} 3. Nf3 {[%emt 0:00:26]} Bg7 {[%emt 0:00:00]} 4. g3 {[%emt 0:00:38]} O-O {[%emt 0:00:01]} 5. Bg2 {[%emt 0:00:14]} c6 {[%emt 0:00:07]} 6. Nc3 {[%emt 0:00:43]} d5 {[%emt 0:00:03]} 7. Ne5 {[%emt 0:01:10]} Nbd7 {[%emt 0:02:56] D73: Fianchetto Grünfeld: 5 Nf3 .} 8. f4 {[%emt 0:02:50]} dxc4 {[%emt 0:09:37]} 9. Nxc4 {[%emt 0:01:26]} Nb6 {[%emt 0:00:18] The position is equal.} 10. Ne5 {[%emt 0:01:59] [#]} Ng4 $146 {[%emt 0:02:12]} ({Predecessor:} 10... Nfd5 11. e4 Nxc3 12. bxc3 Be6 13. O-O f6 14. Nd3 Bc4 15. Rf3 e5 16. Ba3 Re8 {1-0 (42) Ortiz Herranz,E (2243)-Estrada Martinez,C (2167) Madrid 2011}) 11. O-O {[%emt 0:02:05]} Nxe5 {[%emt 0:00:54]} 12. dxe5 {[%emt 0:04:54]} Qc7 {[%emt 0:01:18]} 13. Qc2 {[%emt 0:01:44]} Be6 {[%emt 0:03:24]} 14. e4 {[%emt 0:02:03][%cal Oc3b5]} Rad8 {[%emt 0:01:21]} 15. b3 {[%emt 0:01:45]} Qd7 {[%emt 0:07:24]} 16. Rd1 {[%emt 0:02:14]} Qc8 {[%emt 0:00:11]} 17. Be3 {[%emt 0:02:28]} Bg4 {[%emt 0:00:13]} 18. Re1 {[%emt 0:01:31]} f6 {[%emt 0:01:11]} 19. exf6 {[%emt 0:01:21]} Bxf6 {[%emt 0:00:09]} 20. e5 {[%emt 0:00:35]} Bg7 {[%emt 0:00:02]} 21. Qf2 {[%emt 0:01:05]} (21. a4 $16) 21... Bxe5 $1 $15 {[%emt 0:01:59]} 22. Bxb6 {[%emt 0:03:49]} (22. Rac1 $11) 22... Bxc3 $17 {[%emt 0:00:04]} 23. Bxd8 {[%emt 0:02:08]} Rxd8 {[%emt 0:00:42]} 24. Kh1 {[%emt 0:06:15]} Bxa1 {[%emt 0:01:49]} 25. Rxa1 {[%emt 0:00:11]} a6 {[%emt 0:00:05]} 26. Re1 {[%emt 0:00:47]} Qd7 {[%emt 0:03:23]} 27. Qe3 {[%emt 0:01:24]} Kf7 {[%emt 0:00:22]} 28. Kg1 {[%emt 0:02:22]} Qd4 {[%emt 0:00:43] [#] Strongly threatening ...Qxe3+.} 29. h3 {[%emt 0:00:19]} Qxe3+ {[%emt 0:00:10]} 30. Rxe3 $19 {[%emt 0:00:01][%mdl 4096] Endgame KRB-KRB} Rd1+ {[%emt 0:00:02]} 31. Kh2 {[%emt 0:00:21]} Be6 {[%emt 0:00:04] aiming for ...Rd2.} 32. Re2 {[%emt 0:00:16] Against Rd2} a5 {[%emt 0:00:32]} 33. Bf3 {[%emt 0:00:29][%cal Oe2e6] And now Rxe6! would win.} Rd4 {[%emt 0:00:14]} 34. Bg4 {[%emt 0:00:34] [#]} Bd5 {[%emt 0:00:12] ...h5 is the strong threat.} 35. Kg1 {[%emt 0:00:22]} a4 {[%emt 0:00:10]} 36. bxa4 {[%emt 0:00:12]} (36. Re3 $142 Rd2 37. bxa4) 36... Rxa4 {[%emt 0:00:01] Black is clearly winning.} 37. Bc8 {[%emt 0:00:06]} b5 {[%emt 0:00:02]} 38. Bd7 {[%emt 0:00:13]} Ra7 {[%emt 0:00:15] Weighted Error Value: White=0.34/Black=0.09 (flawless)} 0-1

[Event "Slovakia Open 2022"]
[Site "Bratislava"]
[Date "2022.10.01"]
[Round "7.27"]
[White "Malaschitz, Teodor"]
[Black "Kucera, Michal"]
[Result "0-1"]
[ECO "B33"]
[WhiteElo "1448"]
[BlackElo "1927"]
[Annotator "TA"]
[PlyCount "34"]
[EventDate "2022.09.30"]
[EventCountry "SVK"]
[SourceTitle "playchess.com"]
[Source "ChessBase"]
[SourceQuality "1"]
[TimeControl "2700+10"]

{[%evp 9,34,1,20,-15,-16,-72,-63,-72,-65,-160,-80,-173,-168,-291,-280,-278,-285,-363,-368,-412,-405,-559,-366,-1158,-1124,-1242,-1240]} 1. e4 {[%emt 0:00:05]} c5 {[%emt 0:00:01]} 2. Nf3 {[%emt 0:00:01]} Nc6 {[%emt 0:00:10]} 3. d4 {[%emt 0:00:02]} cxd4 {[%emt 0:00:00]} 4. Nxd4 {[%emt 0:00:01]} Nf6 {[%emt 0:00:00]} 5. f3 {[%emt 0:00:11]} e5 {[%emt 0:00:04]} 6. Nxc6 {[%emt 0:00:00] B33: Sicilian: Pelikan and Sveshnikov Variations.} bxc6 {[%emt 0:00:02]} 7. c4 {[%emt 0:00:00]} (7. Bd3 $11) 7... Bc5 $17 {[%emt 0:02:01][%cal Bf8c5,Bc5e3,Be3d4,Bd4c3][%mdl 32]} 8. Nc3 {[%emt 0:00:21] Black is slightly better.} O-O {[%emt 0:01:44][%cal Od7d5] [#]} 9. Qe2 $146 {[%emt 0:00:27]} (9. Qc2 $15) ({Predecessor:} 9. Bg5 Bd4 10. Qc2 Rb8 11. Bd3 h6 12. Bd2 Ba6 13. Ke2 d5 14. b3 dxe4 15. Nxe4 {0-1 (26) Vodopivec,V (1973)-Kokol,P (2271) Nova Gorica 2014}) 9... Ba6 {[%emt 0:01:18] Black is more active.} (9... d5 $142 10. cxd5 (10. exd5 cxd5 11. cxd5 Nxd5 $19) 10... cxd5) 10. Be3 {[%emt 0:00:09] [#]} (10. Bg5 $17 {was necessary.}) 10... Bxc4 $1 $19 {[%emt 0:00:19][%mdl 512]} 11. Qxc4 {[%emt 0:00:08]} (11. Qf2 $142 Bxe3 12. Qxe3 Bxf1 13. Rxf1) (11. Qd2 Bxe3) 11... Bxe3 {[%emt 0:00:10]} 12. Qd3 {[%emt 0:00:29]} Bd4 {[%emt 0:00:21]} 13. h4 {[%emt 0:00:37]} d5 {[%emt 0:01:21]} 14. Rb1 {[%emt 0:00:41]} Rb8 {[%emt 0:01:18] White must now prevent ...Qa5.} 15. a3 {[%emt 0:02:03]} Qa5 {[%emt 0:01:16]} 16. exd5 $2 {[%emt 0:00:15] [#]} (16. b4 Qxa3 17. Nxd5) 16... Nxd5 {[%emt 0:01:38] Hoping for ...Nf4.} 17. b4 {[%emt 0:00:26]} Bxc3+ {[%emt 0:00:19] Black took control after the opening.  Weighted Error Value: White=1.03/Black=0.34} 0-1

[Event "Slovakia Open 2022"]
[Site "Bratislava"]
[Date "2022.10.01"]
[Round "7.28"]
[White "Prochazka, Peter"]
[Black "Dubnicka, Ferdinand"]
[Result "0-1"]
[ECO "B32"]
[WhiteElo "1792"]
[BlackElo "1494"]
[Annotator "NA COMBH"]
[PlyCount "92"]
[EventDate "2022.09.30"]
[EventCountry "SVK"]
[SourceTitle "playchess.com"]
[Source "ChessBase"]
[SourceQuality "1"]
[TimeControl "2700+10"]

1. e4 {[%emt 0:00:08]} c5 {[%emt 0:00:02]} 2. d4 {[%emt 0:00:03]} cxd4 {[%emt 0:00:05]} 3. c3 {[%emt 0:00:03]} Nc6 {[%emt 0:00:09]} 4. Nf3 {[%emt 0:00:18]} e5 {[%emt 0:00:28]} 5. Bc4 {[%emt 0:00:37]} h6 {[%emt 0:00:03]} 6. O-O {[%emt 0:00:57]} d6 {[%emt 0:00:02]} 7. cxd4 {[%emt 0:00:46]} exd4 {[%emt 0:00:04]} 8. Nxd4 {[%emt 0:00:38]} Nf6 {[%emt 0:00:09]} 9. Nc3 {[%emt 0:01:56]} Be7 {[%emt 0:00:26]} 10. Be3 {[%emt 0:06:21]} O-O {[%emt 0:00:08]} 11. Bd5 {[%emt 0:04:13]} Bd7 {[%emt 0:00:46]} 12. Rc1 {[%emt 0:01:18]} Rc8 {[%emt 0:00:32]} 13. h3 {[%emt 0:02:16]} a6 {[%emt 0:01:52]} 14. Qd2 {[%emt 0:00:47]} Nh7 {[%emt 0:00:14]} 15. f4 {[%emt 0:01:57]} Kh8 {[%emt 0:03:28]} 16. Nf3 {[%emt 0:04:08]} Be6 {[%emt 0:00:24]} 17. Rfd1 {[%emt 0:01:04]} Nf6 {[%emt 0:02:02]} 18. f5 {[%emt 0:02:53]} Bxd5 {[%emt 0:00:24]} 19. exd5 {[%emt 0:00:33]} Nb8 {[%emt 0:00:58]} 20. Ne2 {[%emt 0:04:50]} Ne4 {[%emt 0:03:27]} 21. Qe1 {[%emt 0:01:16]} Rxc1 {[%emt 0:00:11]} 22. Nxc1 {[%emt 0:01:08]} Bf6 {[%emt 0:00:04]} 23. Qb4 {[%emt 0:04:13]} Qe7 {[%emt 0:00:26]} 24. Re1 {[%emt 0:00:28]} Re8 {[%emt 0:00:22]} 25. Nd3 {[%emt 0:00:33]} b5 {[%emt 0:00:11]} 26. Nf4 {[%emt 0:00:30]} Qd7 {[%emt 0:00:28]} 27. Ne6 {[%emt 0:01:30]} Nc5 {[%emt 0:01:06]} 28. Bxc5 {[%emt 0:03:36]} dxc5 {[%emt 0:00:03]} 29. Qxc5 {[%emt 0:00:36]} fxe6 {[%emt 0:00:27]} 30. dxe6 {[%emt 0:00:18]} Qb7 {[%emt 0:00:13]} 31. b3 {[%emt 0:00:11]} Nc6 {[%emt 0:00:02]} 32. Rd1 {[%emt 0:00:04]} Qa7 {[%emt 0:00:29]} 33. Qxa7 {[%emt 0:00:05]} Nxa7 {[%emt 0:00:01]} 34. Rd7 {[%emt 0:00:06]} Nc6 {[%emt 0:01:17]} 35. Rc7 {[%emt 0:00:03]} Ne7 {[%emt 0:00:04]} 36. g4 {[%emt 0:00:05]} Ra8 {[%emt 0:00:20]} 37. h4 {[%emt 0:00:11]} Nd5 {[%emt 0:00:28]} 38. Rd7 {[%emt 0:00:07]} Nc3 {[%emt 0:00:17]} 39. g5 {[%emt 0:00:09]} hxg5 {[%emt 0:00:10]} 40. hxg5 {[%emt 0:00:01]} Bd8 {[%emt 0:00:32]} 41. Ne5 {[%emt 0:00:08]} Bb6+ {[%emt 0:00:04]} 42. Kg2 {[%emt 0:00:13]} Ne4 {[%emt 0:00:21]} 43. Nf7+ {[%emt 0:00:45]} Kg8 {[%emt 0:00:07]} 44. Rd3 {[%emt 0:00:08]} Re8 {[%emt 0:00:36]} 45. Kf3 {[%emt 0:00:02]} Nc5 {[%emt 0:00:03]} 46. g6 {[%emt 0:00:26]} Nxd3 {[%emt 0:00:04]} 0-1

[Event "Slovakia Open 2022"]
[Site "Bratislava"]
[Date "2022.10.01"]
[Round "7.29"]
[White "Durovka, Stefan"]
[Black "Benci, Jozef"]
[Result "0-1"]
[ECO "D94"]
[WhiteElo "1783"]
[BlackElo "1873"]
[Annotator "NA RC COMBH"]
[PlyCount "177"]
[EventDate "2022.09.30"]
[EventCountry "SVK"]
[SourceTitle "playchess.com"]
[Source "ChessBase"]
[SourceQuality "1"]
[TimeControl "2700+10"]

1. Nf3 {[%emt 0:00:07]} Nf6 {[%emt 0:00:12]} 2. c4 {[%emt 0:00:08]} c5 {[%emt 0:00:02]} 3. Nc3 {[%emt 0:00:06]} g6 {[%emt 0:00:19]} 4. e3 {[%emt 0:00:21]} Bg7 {[%emt 0:00:35]} 5. d4 {[%emt 0:00:06]} cxd4 {[%emt 0:00:23]} 6. exd4 {[%emt 0:00:01]} O-O {[%emt 0:00:10]} 7. Bd3 {[%emt 0:00:22]} d5 {[%emt 0:01:04]} 8. O-O {[%emt 0:00:39]} Nc6 {[%emt 0:02:47]} 9. Be3 {[%emt 0:00:47]} Bg4 {[%emt 0:00:25]} 10. Be2 {[%emt 0:00:49]} e6 {[%emt 0:03:33]} 11. c5 {[%emt 0:00:26]} Bxf3 {[%emt 0:01:00]} 12. Bxf3 {[%emt 0:00:04]} Ne7 {[%emt 0:02:10]} 13. b4 {[%emt 0:00:28]} Nf5 {[%emt 0:00:09]} 14. Bg5 {[%emt 0:00:12]} Qd7 {[%emt 0:01:42]} 15. g4 {[%emt 0:00:13]} Ne7 {[%emt 0:01:07]} 16. Re1 {[%emt 0:00:25]} Nc6 {[%emt 0:01:48]} 17. b5 {[%emt 0:00:27]} Nxd4 {[%emt 0:02:19]} 18. Bxf6 {[%emt 0:02:20]} Bxf6 {[%emt 0:03:09]} 19. Rb1 {[%emt 0:00:41]} Rac8 {[%emt 0:02:27]} 20. Na4 {[%emt 0:01:50]} Nxb5 {[%emt 0:05:31]} 21. Rb4 {[%emt 0:01:40]} Nc3 {[%emt 0:02:10]} 22. Qb3 {[%emt 0:01:13]} Nxa4 {[%emt 0:00:27]} 23. Rxa4 {[%emt 0:00:42]} a6 {[%emt 0:01:21]} 24. Rb4 {[%emt 0:00:29]} Rc7 {[%emt 0:05:43]} 25. Rc1 {[%emt 0:00:47]} Rb8 {[%emt 0:00:44]} 26. Rb6 {[%emt 0:00:18]} Rc6 {[%emt 0:00:32]} 27. Be2 {[%emt 0:00:34]} Qc7 {[%emt 0:01:49]} 28. Rc2 {[%emt 0:02:18]} Bd8 {[%emt 0:01:30]} 29. Bxa6 {[%emt 0:03:29]} Rxb6 {[%emt 0:02:18]} 30. cxb6 {[%emt 0:00:12]} Qxb6 {[%emt 0:00:13]} 31. Qxb6 {[%emt 0:00:08]} Bxb6 {[%emt 0:00:01]} 32. Bb5 {[%emt 0:00:19]} Rd8 {[%emt 0:00:53]} 33. Kf1 {[%emt 0:00:12]} Kf8 {[%emt 0:00:06]} 34. Ke2 {[%emt 0:00:02]} Ke7 {[%emt 0:00:08]} 35. f4 {[%emt 0:00:03]} Kd6 {[%emt 0:00:26]} 36. Kd3 {[%emt 0:00:05]} Bc5 {[%emt 0:00:07]} 37. h3 {[%emt 0:00:20]} Ra8 {[%emt 0:00:25]} 38. a4 {[%emt 0:00:02]} b6 {[%emt 0:00:01]} 39. h4 {[%emt 0:00:08]} Rf8 {[%emt 0:00:22]} 40. Rh2 {[%emt 0:00:33]} f6 {[%emt 0:00:49]} 41. Rh3 {[%emt 0:00:39]} e5 {[%emt 0:00:13]} 42. fxe5+ {[%emt 0:00:25]} fxe5 {[%emt 0:00:02]} 43. g5 {[%emt 0:00:32]} e4+ {[%emt 0:00:22]} 44. Ke2 {[%emt 0:00:14]} Rf2+ {[%emt 0:00:10]} 45. Ke1 {[%emt 0:00:03]} Rf3 {[%emt 0:00:17]} 46. Rh2 {[%emt 0:00:40]} Ra3 {[%emt 0:00:22]} 47. Be2 {[%emt 0:06:31]} Rxa4 {[%emt 0:00:10]} 48. h5 {[%emt 0:00:10]} Ra1+ {[%emt 0:00:07]} 49. Bd1 {[%emt 0:00:12]} Bb4+ {[%emt 0:00:12]} 50. Kf2 {[%emt 0:00:25]} Rxd1 {[%emt 0:00:17]} 51. hxg6 {[%emt 0:00:12]} hxg6 {[%emt 0:00:10]} 52. Rh6 {[%emt 0:00:03]} Rd2+ {[%emt 0:00:03]} 53. Kf1 {[%emt 0:00:16]} Rd1+ {[%emt 0:00:19]} 54. Ke2 {[%emt 0:00:01]} Rd2+ {[%emt 0:00:03]} 55. Kf1 {[%emt 0:00:02]} Ke5 {[%emt 0:00:13]} 56. Rxg6 {[%emt 0:00:02]} Kf5 {[%emt 0:00:04]} 57. Rg8 {[%emt 0:00:20]} Bc5 {[%emt 0:00:09]} 58. g6 {[%emt 0:00:11]} Rd1+ {[%emt 0:00:15]} 59. Ke2 {[%emt 0:00:12]} Rg1 {[%emt 0:00:02]} 60. g7 {[%emt 0:00:06]} Kf6 {[%emt 0:00:24]} 61. Rd8 {[%emt 0:00:15]} Rxg7 {[%emt 0:00:10]} 62. Rxd5 {[%emt 0:00:13]} Rg5 {[%emt 0:00:10]} 63. Rd7 {[%emt 0:00:08]} Ke6 {[%emt 0:00:07]} 64. Rd8 {[%emt 0:00:08]} e3 {[%emt 0:00:16]} 65. Kf3 {[%emt 0:00:16]} Rf5+ {[%emt 0:00:02]} 66. Ke2 {[%emt 0:00:12]} Rd5 {[%emt 0:00:06]} 67. Re8+ {[%emt 0:00:07]} Kd6 {[%emt 0:00:05]} 68. Rd8+ {[%emt 0:00:05]} Kc6 {[%emt 0:00:02]} 69. Rc8+ {[%emt 0:00:06]} Kb5 {[%emt 0:00:02]} 70. Re8 {[%emt 0:00:15]} Rd2+ {[%emt 0:00:09]} 71. Kf3 {[%emt 0:00:41]} Rf2+ {[%emt 0:00:08]} 72. Kg3 {[%emt 0:00:13]} Rd2 {[%emt 0:00:18]} 73. Kf3 {[%emt 0:00:03]} Kc4 {[%emt 0:00:04]} 74. Rc8 {[%emt 0:00:22]} e2 {[%emt 0:00:24]} 75. Re8 {[%emt 0:00:15]} Rd3+ {[%emt 0:00:25]} 76. Kxe2 {[%emt 0:01:14]} Re3+ {[%emt 0:00:06]} 77. Rxe3 {[%emt 0:00:03]} Bxe3 {[%emt 0:00:01]} 78. Kxe3 {[%emt 0:00:10]} Kc3 {[%emt 0:00:02]} 79. Ke2 {[%emt 0:00:00]} Kc2 {[%emt 0:00:11]} 80. Ke3 {[%emt 0:00:00]} b5 {[%emt 0:00:04]} 81. Kd4 {[%emt 0:00:00]} b4 {[%emt 0:00:02]} 82. Kc4 {[%emt 0:00:00]} b3 {[%emt 0:00:02]} 83. Kb4 {[%emt 0:00:06]} b2 {[%emt 0:00:03]} 84. Ka3 {[%emt 0:00:08]} Kc1 {[%emt 0:00:14]} 85. Ka2 {[%emt 0:00:18]} b1=Q+ {[%emt 0:00:10]} 86. Ka3 {[%emt 0:00:11]} Kc2 {[%emt 0:00:05]} 87. Ka4 {[%emt 0:00:00]} Kc3 {[%emt 0:00:03]} 88. Ka5 {[%emt 0:00:01]} Kc4 {[%emt 0:00:04]} 89. Ka6 {[%emt 0:00:00]} 0-1